fUSD/lending_fUSD_20260702
["ID","MTS","AMOUNT","RATE_DAILY","PERIOD"]
[426884944,1782981038000,-800.0,0.0003,2]
[426884942,1782981038000,-12499.98,0.0003,2]
[426884937,1782981038000,-14999.99,0.0003,2]
[426884932,1782981038000,-25000.0,0.0003,2]
[426884933,1782981038000,-15000.0,0.0003,2]
[426884939,1782981038000,-9999.98,0.0003,2]
[426884929,1782981038000,-2500.0,0.0003,2]
[426884935,1782981038000,-12499.99,0.0003,2]
[426884936,1782981038000,-12499.99,0.0003,2]
[426884934,1782981038000,-12500.0,0.0003,2]
[426885008,1782981039000,-2000.0,0.00030136,2]
[426885014,1782981039000,-2000.0,0.00030136,2]
[426885006,1782981039000,-2000.0,0.00030136,2]
[426885007,1782981039000,-2000.0,0.00030136,2]
[426885004,1782981039000,-2000.0,0.00030136,2]
[426885009,1782981039000,-2000.0,0.00030136,2]
[426885011,1782981039000,-2000.0,0.00030136,2]
[426885003,1782981039000,-2000.0,0.00030136,2]
[426885005,1782981039000,-2000.0,0.00030136,2]
[426885001,1782981039000,-2000.0,0.00030136,2]
[426885010,1782981039000,-2000.0,0.00030136,2]
[426885016,1782981039000,-2000.0,0.00030136,2]
[426885026,1782981039000,-2000.0,0.00030136,2]
[426885020,1782981039000,-2000.0,0.00030136,2]
[426885021,1782981039000,-2000.0,0.00030136,2]
[426885018,1782981039000,-2000.0,0.00030136,2]
[426885024,1782981039000,-2000.0,0.00030136,2]
[426885019,1782981039000,-2000.0,0.00030136,2]
[426885022,1782981039000,-2000.0,0.00030136,2]
[426885015,1782981039000,-2000.0,0.00030136,2]
[426885023,1782981039000,-2000.0,0.00030136,2]
[426885025,1782981039000,-2000.0,0.00030136,2]
[426885028,1782981039000,-2000.0,0.00030136,2]
[426885036,1782981039000,-500.0,0.00030136,15]
[426885013,1782981039000,-2000.0,0.00030136,2]
[426885038,1782981039000,-500.0,0.00030136,15]
[426885017,1782981039000,-2000.0,0.00030136,2]
[426885012,1782981039000,-2000.0,0.00030136,2]
[426884986,1782981039000,-2000.0,0.00030136,2]
[426884994,1782981039000,-2000.0,0.00030136,2]
[426885039,1782981039000,-510.87608659,0.00030136,15]
[426884975,1782981039000,-2119.80461179,0.000301,2]
[426884974,1782981039000,-674.0,0.0003009,5]
[426884976,1782981039000,-2000.0,0.00030109,5]
[426884978,1782981039000,-150.0,0.0003011,5]
[426884980,1782981039000,-12500.0,0.00030125,2]
[426884979,1782981039000,-163.9566741,0.0003011,5]
[426884981,1782981039000,-2000.0,0.00030135,15]
[426884983,1782981039000,-2000.0,0.00030136,2]
[426884982,1782981039000,-2000.0,0.00030136,2]
[426884988,1782981039000,-2000.0,0.00030136,2]
[426884977,1782981039000,-150.0,0.0003011,5]
[426885002,1782981039000,-2000.0,0.00030136,2]
[426884984,1782981039000,-2000.0,0.00030136,2]
[426884987,1782981039000,-2000.0,0.00030136,2]
[426884992,1782981039000,-2000.0,0.00030136,2]
[426884989,1782981039000,-2000.0,0.00030136,2]
[426884991,1782981039000,-2000.0,0.00030136,2]
[426884998,1782981039000,-2000.0,0.00030136,2]
[426884995,1782981039000,-2000.0,0.00030136,2]
[426884999,1782981039000,-2000.0,0.00030136,2]
[426884997,1782981039000,-2000.0,0.00030136,2]
[426884990,1782981039000,-2000.0,0.00030136,2]
[426884993,1782981039000,-2000.0,0.00030136,2]
[426884996,1782981039000,-2000.0,0.00030136,2]
[426885000,1782981039000,-2000.0,0.00030136,2]
[426884985,1782981039000,-2000.0,0.00030136,2]
[426885037,1782981039000,-500.0,0.00030136,15]
[426885073,1782981039000,-500.0,0.00030174,2]
[426885030,1782981039000,-500.0,0.00030136,30]
[426885063,1782981039000,-500.0,0.00030174,2]
[426885064,1782981039000,-500.0,0.00030174,2]
[426885068,1782981039000,-500.0,0.00030174,2]
[426885065,1782981039000,-500.0,0.00030174,2]
[426885067,1782981039000,-500.0,0.00030174,2]
[426885066,1782981039000,-500.0,0.00030174,2]
[426885072,1782981039000,-500.0,0.00030174,2]
[426885070,1782981039000,-500.0,0.00030174,2]
[426885074,1782981039000,-500.0,0.00030174,2]
[426885077,1782981039000,-500.0,0.00030174,2]
[426885071,1782981039000,-500.0,0.00030174,2]
[426885075,1782981039000,-500.0,0.00030174,2]
[426885061,1782981039000,-521.36271652,0.00030174,2]
[426885080,1782981039000,-500.0,0.00030174,2]
[426885076,1782981039000,-500.0,0.00030174,2]
[426885079,1782981039000,-500.0,0.00030174,2]
[426885081,1782981039000,-500.0,0.00030174,2]
[426885084,1782981039000,-500.0,0.00030174,2]
[426885085,1782981039000,-500.0,0.00030174,2]
[426885083,1782981039000,-500.0,0.00030174,2]
[426885087,1782981039000,-500.0,0.00030174,2]
[426885089,1782981039000,-500.0,0.00030174,2]
[426885086,1782981039000,-500.0,0.00030174,2]
[426885088,1782981039000,-500.0,0.00030174,2]
[426885027,1782981039000,-2000.0,0.00030136,2]
[426885090,1782981039000,-500.0,0.00030174,2]
[426885082,1782981039000,-500.0,0.00030174,2]
[426885062,1782981039000,-500.0,0.00030174,120]
[426885078,1782981039000,-500.0,0.00030174,2]
[426885069,1782981039000,-500.0,0.00030174,2]
[426885029,1782981039000,-1072.17329972,0.00030136,2]
[426885060,1782981039000,-500.0,0.00030174,5]
[426885032,1782981039000,-500.0,0.00030136,30]
[426885035,1782981039000,-500.0,0.00030136,15]
[426885034,1782981039000,-500.0,0.00030136,15]
[426885033,1782981039000,-2000.0,0.00030136,30]
[426885040,1782981039000,-237.73146944,0.00030137,2]
[426885042,1782981039000,-241.04653384,0.00030137,2]
[426885045,1782981039000,-745.32230588,0.00030137,7]
[426885044,1782981039000,-723.13960153,0.00030137,2]
[426885043,1782981039000,-482.09306769,0.00030137,2]
[426885041,1782981039000,-475.46293887,0.00030137,2]
[426885046,1782981039000,-745.32230588,0.00030137,7]
[426885049,1782981039000,-154.77201094,0.00030137,2]
[426885031,1782981039000,-500.0,0.00030136,30]
[426885048,1782981039000,-745.32230589,0.00030137,7]
[426885050,1782981039000,-220.0,0.00030137,7]
[426885054,1782981039000,-2000.0,0.00030139,4]
[426885056,1782981039000,-200.0,0.00030157,2]
[426885051,1782981039000,-2000.0,0.00030138,10]
[426885052,1782981039000,-372.49695097,0.00030139,2]
[426885059,1782981039000,-500.0,0.00030174,7]
[426885047,1782981039000,-745.32230589,0.00030137,7]
[426885055,1782981039000,-201.79766162,0.00030139,2]
[426885053,1782981039000,-5864.50644178,0.00030139,2]
[426885057,1782981039000,-1195.55861644,0.00030162,2]
[426885058,1782981039000,-400.0,0.0003017,2]
[426885141,1782981040000,-151.0,0.00030501,2]
[426885131,1782981040000,-150.0,0.00030496,30]
[426885128,1782981040000,-163.65,0.00030411,120]
[426885129,1782981040000,-40000.0,0.00030456,2]
[426885124,1782981040000,-12500.0,0.00030375,2]
[426885122,1782981040000,-251.0,0.0003036,2]
[426885120,1782981040000,-251.0,0.0003036,2]
[426885126,1782981040000,-264.00358386,0.000304,2]
[426885127,1782981040000,-241.72420714,0.000304,2]
[426885140,1782981040000,-572.88,0.00030501,2]
[426885123,1782981040000,-251.0,0.0003036,2]
[426885139,1782981040000,-800.0,0.000305,2]
[426885136,1782981040000,-12500.0,0.000305,2]
[426885133,1782981040000,-500.0,0.00030499,30]
[426885132,1782981040000,-150.16,0.00030496,30]
[426885134,1782981040000,-800.0,0.000305,2]
[426885138,1782981040000,-12500.0,0.000305,2]
[426885135,1782981040000,-800.0,0.000305,2]
[426885137,1782981040000,-754.51,0.000305,2]
[426885145,1782981040000,-151.48,0.00030506,2]
[426885142,1782981040000,-206.31,0.00030501,2]
[426885146,1782981040000,-574.05,0.00030506,2]
[426885144,1782981040000,-151.0,0.00030506,2]
[426885147,1782981040000,-151.0,0.00030506,2]
[426885125,1782981040000,-9000.0,0.00030386,5]
[426885130,1782981040000,-256.31590034,0.00030489,7]
[426885121,1782981040000,-251.0,0.0003036,2]
[426885095,1782981040000,-500.0,0.00030174,120]
[426885118,1782981040000,-721.0,0.000303,5]
[426885148,1782981040000,-901.0,0.00030532,5]
[426885094,1782981040000,-500.0,0.00030174,120]
[426885091,1782981040000,-500.0,0.00030174,2]
[426885092,1782981040000,-561.08755963,0.00030174,2]
[426885093,1782981040000,-500.0,0.00030174,120]
[426885098,1782981040000,-2836.4198454,0.00030175,2]
[426885096,1782981040000,-500.0,0.00030174,30]
[426885103,1782981040000,-500.0,0.00030238,7]
[426885099,1782981040000,-202850.5448854,0.00030175,2]
[426885101,1782981040000,-2000.0,0.00030199,7]
[426885104,1782981040000,-500.0,0.00030238,7]
[426885105,1782981040000,-164.58096742,0.00030247,28]
[426885106,1782981040000,-290.34033493,0.00030247,28]
[426885107,1782981040000,-434.33177693,0.00030247,28]
[426885102,1782981040000,-151.0,0.000302,2]
[426885100,1782981040000,-2000.0,0.00030199,2]
[426885097,1782981040000,-500.0,0.00030174,60]
[426885109,1782981040000,-519.97281121,0.00030249,7]
[426885111,1782981040000,-500.0,0.00030249,120]
[426885108,1782981040000,-587.664,0.00030247,28]
[426885110,1782981040000,-501.4711101,0.00030249,5]
[426885112,1782981040000,-500.0,0.00030249,60]
[426885113,1782981040000,-12500.0,0.0003025,2]
[426885115,1782981040000,-12500.0,0.0003025,2]
[426885114,1782981040000,-2499.98,0.0003025,2]
[426885117,1782981040000,-12500.0,0.0003025,2]
[426885116,1782981040000,-25000.0,0.0003025,2]
[426885119,1782981040000,-10000.0,0.00030333,2]
[426885150,1782981040000,-12500.0,0.00030625,2]
[426885174,1782981040000,-250.0,0.00030948,2]
[426885149,1782981040000,-200.0,0.00030619,30]
[426885180,1782981040000,-150.0,0.00030948,2]
[426885190,1782981040000,-799.0,0.00031,30]
[426885187,1782981040000,-3574.628,0.00030954,2]
[426885183,1782981040000,-350.0,0.00030954,2]
[426885182,1782981040000,-1386.537,0.00030954,2]
[426885186,1782981040000,-3652.0,0.00030954,2]
[426885184,1782981040000,-1293.959,0.00030954,2]
[426885185,1782981040000,-1231.0,0.00030954,2]
[426885188,1782981040000,-491.74841472,0.00030982,2]
[426885200,1782981040000,-2000.0,0.00031,2]
[426885193,1782981040000,-3885.73492806,0.00031,120]
[426885201,1782981040000,-251.0,0.0003102,2]
[426885189,1782981040000,-200.539999,0.00031,11]
[426885192,1782981040000,-800.0,0.00031,2]
[426885202,1782981040000,-251.0,0.0003102,2]
[426885196,1782981040000,-177.8140475,0.00031,14]
[426885198,1782981040000,-10000.0,0.00031,2]
[426885197,1782981040000,-12500.0,0.00031,2]
[426885195,1782981040000,-175.54819764,0.00031,120]
[426885203,1782981040000,-251.0,0.0003102,2]
[426885204,1782981040000,-251.0,0.0003102,2]
[426885205,1782981040000,-251.0,0.0003102,2]
[426885207,1782981040000,-251.0,0.0003102,2]
[426885206,1782981040000,-251.0,0.0003102,2]
[426885208,1782981040000,-376.85106739,0.00031072,2]
[426885143,1782981040000,-151.0,0.00030501,2]
[426885194,1782981040000,-353.25059781,0.00031,5]
[426885191,1782981040000,-799.37489077,0.00031,30]
[426885199,1782981040000,-1000.0,0.00031,7]
[426885179,1782981040000,-150.0,0.00030948,2]
[426885152,1782981040000,-251.0,0.0003069,2]
[426885181,1782981040000,-150.587,0.00030948,2]
[426885154,1782981040000,-251.0,0.0003069,2]
[426885153,1782981040000,-279.4681998,0.0003069,2]
[426885164,1782981040000,-500.0,0.00030749,60]
[426885155,1782981040000,-251.0,0.0003069,2]
[426885165,1782981040000,-12500.0,0.0003075,2]
[426885156,1782981040000,-251.0,0.0003069,2]
[426885158,1782981040000,-251.0,0.0003069,2]
[426885157,1782981040000,-251.0,0.0003069,2]
[426885161,1782981040000,-500.0,0.00030699,7]
[426885159,1782981040000,-251.0,0.0003069,2]
[426885163,1782981040000,-222.17560267,0.00030746,30]
[426885162,1782981040000,-1195.55861644,0.0003071,2]
[426885151,1782981040000,-10000.0,0.00030667,2]
[426885166,1782981040000,-350.0,0.00030796,2]
[426885160,1782981040000,-500.0,0.00030699,7]
[426885173,1782981040000,-150.0,0.00030948,2]
[426885175,1782981040000,-221.0,0.00030948,2]
[426885172,1782981040000,-2119.80461179,0.00030926,2]
[426885176,1782981040000,-250.0,0.00030948,2]
[426885178,1782981040000,-196.009,0.00030948,2]
[426885177,1782981040000,-268.404,0.00030948,2]
[426885169,1782981040000,-500.0,0.00030874,21]
[426885170,1782981040000,-12500.0,0.00030875,2]
[426885171,1782981040000,-200.0,0.000309,4]
[426885168,1782981040000,-1645.58312333,0.0003084,2]
[426885167,1782981040000,-161.35,0.00030798,2]
[426885245,1782981041000,-5800.0,0.00031441,2]
[426885244,1782981041000,-20380.73159139,0.0003143,4]
[426885249,1782981041000,-172.86,0.00031457,30]
[426885243,1782981041000,-1049.67121807,0.000314,2]
[426885241,1782981041000,-1049.67121808,0.000314,2]
[426885247,1782981041000,-172.87,0.00031457,30]
[426885246,1782981041000,-5800.0,0.00031449,2]
[426885242,1782981041000,-1049.67121807,0.000314,2]
[426885250,1782981041000,-225.22,0.00031457,30]
[426885240,1782981041000,-200.0,0.00031375,7]
[426885248,1782981041000,-172.87,0.00031457,30]
[426885257,1782981041000,-5800.0,0.00031458,2]
[426885252,1782981041000,-222.2375,0.00031457,30]
[426885253,1782981041000,-150.15,0.00031457,30]
[426885251,1782981041000,-225.23,0.00031457,30]
[426885256,1782981041000,-172.05,0.00031457,30]
[426885255,1782981041000,-172.05,0.00031457,30]
[426885254,1782981041000,-172.05,0.00031457,30]
[426885260,1782981041000,-5800.0,0.00031483,2]
[426885261,1782981041000,-5800.0,0.00031492,2]
[426885263,1782981041000,-800.0,0.000315,2]
[426885273,1782981041000,-491.74841466,0.000316,2]
[426885262,1782981041000,-201.72662386,0.000315,2]
[426885264,1782981041000,-150.0,0.000315,2]
[426885239,1782981041000,-161.96466615,0.0003137,7]
[426885259,1782981041000,-5800.0,0.00031475,2]
[426885238,1782981041000,-537.74883894,0.00031356,60]
[426885212,1782981041000,-500.0,0.00031081,60]
[426885231,1782981041000,-251.0,0.0003135,2]
[426885266,1782981041000,-2000.0,0.000315,2]
[426885211,1782981041000,-500.0,0.00031081,7]
[426885213,1782981041000,-299625.2810319,0.00031082,2]
[426885209,1782981041000,-500.0,0.00031081,7]
[426885210,1782981041000,-500.0,0.00031081,30]
[426885215,1782981041000,-12306.31,0.00031125,2]
[426885225,1782981041000,-644.72,0.00031322,2]
[426885223,1782981041000,-500.0,0.00031299,60]
[426885224,1782981041000,-641.5,0.0003132,2]
[426885219,1782981041000,-350.0,0.00031236,2]
[426885218,1782981041000,-500.0,0.00031199,7]
[426885214,1782981041000,-333.95,0.000311,7]
[426885217,1782981041000,-500.0,0.00031199,7]
[426885216,1782981041000,-416.27,0.0003118,120]
[426885222,1782981041000,-500.0,0.00031273,30]
[426885221,1782981041000,-1195.55861644,0.00031257,2]
[426885220,1782981041000,-40000.0,0.00031246,3]
[426885227,1782981041000,-251.0,0.0003135,2]
[426885234,1782981041000,-222.17560267,0.00031355,30]
[426885235,1782981041000,-177.0,0.00031356,60]
[426885228,1782981041000,-251.0,0.0003135,2]
[426885226,1782981041000,-644.62,0.00031328,2]
[426885236,1782981041000,-535.56138164,0.00031356,60]
[426885229,1782981041000,-251.0,0.0003135,2]
[426885230,1782981041000,-251.0,0.0003135,2]
[426885232,1782981041000,-251.0,0.0003135,2]
[426885233,1782981041000,-22804.0,0.0003135,2]
[426885237,1782981041000,-500.0,0.00031356,60]
[426885265,1782981041000,-5800.0,0.000315,2]
[426885258,1782981041000,-5800.0,0.00031466,2]
[426885268,1782981041000,-188.26400183,0.00031507,15]
[426885306,1782981041000,-537.99476623,0.00031999,7]
[426885300,1782981041000,-500.0,0.0003197,2]
[426885305,1782981041000,-500.0,0.00031999,30]
[426885301,1782981041000,-500.0,0.0003197,2]
[426885303,1782981041000,-500.0,0.00031999,7]
[426885308,1782981041000,-50000.0,0.00032,19]
[426885307,1782981041000,-503.97715691,0.00031999,60]
[426885309,1782981041000,-263710.78325863,0.00032,30]
[426885311,1782981041000,-800.0,0.00032,5]
[426885321,1782981041000,-800.0,0.00032,12]
[426885313,1782981041000,-184609.68169914,0.00032,2]
[426885312,1782981041000,-473.0,0.00032,5]
[426885299,1782981041000,-400.0,0.0003197,2]
[426885310,1782981041000,-2011.23,0.00032,32]
[426885316,1782981041000,-1771.90754046,0.00032,2]
[426885315,1782981041000,-5000.0,0.00032,2]
[426885320,1782981041000,-800.0,0.00032,12]
[426885319,1782981041000,-800.0,0.00032,12]
[426885318,1782981041000,-800.0,0.00032,12]
[426885317,1782981041000,-5999.999999,0.00032,2]
[426885322,1782981041000,-800.0,0.00032,12]
[426885325,1782981041000,-800.0,0.00032,12]
[426885323,1782981041000,-800.0,0.00032,12]
[426885324,1782981041000,-800.0,0.00032,12]
[426885326,1782981041000,-5660.79,0.00032,2]
[426885267,1782981041000,-507.49219555,0.00031506,14]
[426885314,1782981041000,-200.0,0.00032,12]
[426885304,1782981041000,-500.0,0.00031999,30]
[426885302,1782981041000,-500.0,0.00031999,7]
[426885295,1782981041000,-562.76122512,0.000319,2]
[426885269,1782981041000,-1028.84592082,0.0003152,2]
[426885270,1782981041000,-350.0,0.00031528,2]
[426885271,1782981041000,-473.78,0.00031529,3]
[426885272,1782981041000,-333.95,0.000316,7]
[426885274,1782981041000,-151.0,0.00031646,2]
[426885280,1782981041000,-251.0,0.0003168,2]
[426885284,1782981041000,-353.43121,0.0003168,22]
[426885283,1782981041000,-353.43122,0.0003168,22]
[426885298,1782981041000,-222.17560267,0.00031963,30]
[426885278,1782981041000,-251.0,0.0003168,2]
[426885277,1782981041000,-251.0,0.0003168,2]
[426885275,1782981041000,-357.0,0.00031678,2]
[426885279,1782981041000,-251.0,0.0003168,2]
[426885282,1782981041000,-353.43122,0.0003168,22]
[426885276,1782981041000,-251.0,0.0003168,2]
[426885281,1782981041000,-353.43121,0.0003168,22]
[426885285,1782981041000,-152.62411174,0.00031688,2]
[426885294,1782981041000,-224.44696038,0.000319,2]
[426885290,1782981041000,-457.90611043,0.000318,23]
[426885289,1782981041000,-1338.0,0.00031797,7]
[426885291,1782981041000,-1195.55861644,0.00031805,2]
[426885296,1782981041000,-1422.64995432,0.000319,2]
[426885293,1782981041000,-532.68527961,0.0003188,2]
[426885288,1782981041000,-2119.80461179,0.00031751,2]
[426885292,1782981041000,-302.0,0.00031877,2]
[426885297,1782981041000,-6310.46183457,0.00031957,2]
[426885287,1782981041000,-358.958,0.00031726,30]
[426885286,1782981041000,-153.95,0.000317,7]
[426885331,1782981042000,-800.0,0.00032,12]
[426885336,1782981042000,-800.0,0.00032,12]
[426885346,1782981042000,-150.0,0.0003201,7]
[426885329,1782981042000,-353.43121,0.00032,26]
[426885333,1782981042000,-800.0,0.00032,12]
[426885328,1782981042000,-353.43122,0.00032,26]
[426885334,1782981042000,-800.0,0.00032,12]
[426885327,1782981042000,-2757.0,0.00032,2]
[426885330,1782981042000,-800.0,0.00032,12]
[426885347,1782981042000,-333.95,0.000321,7]
[426885332,1782981042000,-800.0,0.00032,12]
[426885338,1782981042000,-7492.7,0.00032,7]
[426885341,1782981042000,-2306.2362667,0.00032009,2]
[426885337,1782981042000,-800.0,0.00032,12]
[426885357,1782981042000,-306.069,0.00032112,5]
[426885356,1782981042000,-372.34049029,0.00032112,5]
[426885350,1782981042000,-11907.90057816,0.00032112,5]
[426885349,1782981042000,-500.0,0.00032112,7]
[426885348,1782981042000,-252.0,0.000321,15]
[426885339,1782981042000,-224.82254973,0.00032,2]
[426885340,1782981042000,-222.2375,0.00032005,30]
[426885343,1782981042000,-251.0,0.0003201,2]
[426885342,1782981042000,-251.0,0.0003201,2]
[426885345,1782981042000,-251.0,0.0003201,2]
[426885335,1782981042000,-800.0,0.00032,12]
[426885344,1782981042000,-251.0,0.0003201,2]
[426885360,1782981043000,-181.13351853,0.000314,2]
[426885359,1782981043000,-297.61057374,0.00031,2]
[426885358,1782981043000,-169.45159879,0.00032112,5]
[426885362,1782981044000,-42.9519301,0.000314,2]
[426885363,1782981044000,-11665.6818325,0.00032112,5]
[426885365,1782981044000,-757.74976323,0.00032112,5]
[426885364,1782981044000,-859.44489052,0.00032112,5]
[426885371,1782981046000,-473.05,0.00031524,3]
[426885372,1782981046000,-346.81467892,0.00032112,5]
[426885376,1782981047000,-500.0,0.00032218,30]
[426885378,1782981047000,-267.70808096,0.00032232,7]
[426885377,1782981047000,-491.74841466,0.00032219,2]
[426885375,1782981047000,-443.0,0.00032206,2]
[426885374,1782981047000,-153.95,0.000322,7]
[426885373,1782981047000,-3746.39419832,0.00032112,5]
[426885381,1782981399000,256.0,0.0003,120]
[426885382,1782981551000,167.32,0.00027533,120]
[426885383,1782981721000,86951.0,0.00037089,120]
[426885384,1782981738000,500000.0,0.00037089,120]
[426885385,1782981747000,1057.0,0.00037089,120]
[426885386,1782981768000,500000.0,0.00037089,120]
[426885387,1782981798000,500000.0,0.00037089,120]
[426885388,1782981826000,3220.082,0.0003,120]
[426885389,1782981828000,46868.36,0.00037089,120]
[426885390,1782981880000,200.0,0.0003,120]
[426885391,1782981884000,14700.0,0.00037089,120]
[426885393,1782981886000,36.13687115,0.000114,2]
[426885392,1782981886000,316.72351534,0.000114,2]
[426885394,1782981946000,536.58458871,0.00011,2]
[426885395,1782982021000,900.0,0.00037089,120]
[426885396,1782982039000,248.95490454,0.00037089,120]
[426885397,1782982061000,752.31883872,0.00018,2]
[426885399,1782982065000,3375.49391401,0.00015,2]
[426885398,1782982065000,3375.49391401,0.00015,2]
[426885400,1782982065000,1906.27251254,0.00015,2]
[426885402,1782982065000,2525.10334351,0.00015,2]
[426885401,1782982065000,3375.49391401,0.00015,2]
[426885404,1782982065000,3270.72495049,0.00015,2]
[426885405,1782982065000,3375.49391401,0.00015,2]
[426885407,1782982065000,3032.52127061,0.00015,2]
[426885406,1782982065000,3375.49391401,0.00015,2]
[426885408,1782982065000,340.250989,0.00015,2]
[426885403,1782982065000,329.8078953,0.00015,2]
[426885416,1782982150000,-155.19835672,0.00015,2]
[426885414,1782982150000,-1414.044772,0.00014984,2]
[426885415,1782982150000,-300.0,0.00014999,2]
[426885418,1782982151000,-3941.13692464,0.00015,2]
[426885419,1782982151000,-528.64797735,0.00015,2]
[426885417,1782982151000,-2071.89379592,0.00015,2]
[426885424,1782982233000,-740.01793856,0.00015,2]
[426885425,1782982233000,-14071.71900625,0.00015,2]
[426885429,1782982233000,-150.0,0.00015449,2]
[426885426,1782982233000,-204.8510681,0.00015049,2]
[426885430,1782982233000,-161.0,0.00015599,2]
[426885431,1782982233000,-250.0,0.00016499,2]
[426885427,1782982233000,-150.0,0.00015149,2]
[426885428,1782982233000,-150.0,0.00015299,2]
[426885503,1782982234000,-8222.64526415,0.000258,2]
[426885451,1782982234000,-500.0,0.00024058,2]
[426885452,1782982234000,-500.0,0.00024058,2]
[426885453,1782982234000,-637.41697896,0.00024058,2]
[426885455,1782982234000,-500.0,0.00024058,2]
[426885456,1782982234000,-500.0,0.00024058,2]
[426885454,1782982234000,-500.0,0.00024058,2]
[426885468,1782982234000,-5000.0,0.0002406,2]
[426885458,1782982234000,-500.0,0.00024058,2]
[426885462,1782982234000,-415.19856323,0.00024058,2]
[426885465,1782982234000,-500.0,0.00024058,2]
[426885464,1782982234000,-500.0,0.00024058,2]
[426885470,1782982234000,-772.32,0.00024174,2]
[426885469,1782982234000,-299.44819643,0.00024108,2]
[426885450,1782982234000,-500.0,0.00024058,2]
[426885446,1782982234000,-500.0,0.00024058,2]
[426885448,1782982234000,-500.0,0.00024058,2]
[426885449,1782982234000,-500.0,0.00024058,2]
[426885436,1782982234000,-7025.99045849,0.0002,2]
[426885432,1782982234000,-5312.79420502,0.00018,2]
[426885433,1782982234000,-300.0,0.00019999,2]
[426885434,1782982234000,-3315.50232035,0.0002,2]
[426885437,1782982234000,-204.85106809,0.00020781,2]
[426885438,1782982234000,-302.9342629,0.00020881,7]
[426885467,1782982234000,-500.0,0.00024058,2]
[426885440,1782982234000,-613.1565,0.00020881,7]
[426885439,1782982234000,-453.17153999,0.00020881,7]
[426885442,1782982234000,-167.88389353,0.00024,2]
[426885443,1782982234000,-158.0,0.00024,2]
[426885444,1782982234000,-151.0,0.00024,2]
[426885445,1782982234000,-158.0,0.00024,2]
[426885447,1782982234000,-500.0,0.00024058,2]
[426885441,1782982234000,-185.117937,0.0002399,2]
[426885463,1782982234000,-500.0,0.00024058,2]
[426885435,1782982234000,-25860.60586995,0.0002,2]
[426885460,1782982234000,-500.0,0.00024058,2]
[426885486,1782982234000,-565.58,0.00025,2]
[426885487,1782982234000,-159.0,0.00025,2]
[426885491,1782982234000,-6289.75,0.00025,2]
[426885485,1782982234000,-28791.48592282,0.0002499,2]
[426885488,1782982234000,-151.0,0.00025,2]
[426885493,1782982234000,-3438.14512176,0.00025426,2]
[426885490,1782982234000,-9435.12,0.00025,2]
[426885496,1782982234000,-753.70213478,0.0002579,2]
[426885497,1782982234000,-303.28193204,0.00025799,2]
[426885495,1782982234000,-18210.73768641,0.000257,2]
[426885499,1782982234000,-500.0,0.00025799,2]
[426885498,1782982234000,-275.86178787,0.00025799,2]
[426885502,1782982234000,-311522.1172347,0.000258,2]
[426885466,1782982234000,-500.0,0.00024058,2]
[426885494,1782982234000,-174.1,0.00025688,2]
[426885500,1782982234000,-500.0,0.00025799,2]
[426885484,1782982234000,-4176.0,0.00024987,2]
[426885492,1782982234000,-314.0,0.00025251,2]